bitfinex-derivatives/quotes_SOLF0:USTF0_20241011
["timestamp","ask_amount","ask_price","bid_price","bid_amount"]
[1728650090200,10.76,142.93,142.9,3.5007]
[1728650091301,10.76,142.93,142.88,10.76]
[1728650091493,3.5005,142.92,142.88,14.2612]
[1728650091694,3.5005,142.92,142.88,3.5012]
[1728650092097,3.5002,142.93,142.89,3.5008]
[1728650092296,10.76,142.92,142.89,3.5008]
[1728650092500,10.76,142.91,142.87,6.58]
[1728650093301,10.76,142.91,142.87,10.0815]
[1728650093700,14.2606,142.91,142.87,10.0815]
[1728650094301,3.5006,142.91,142.87,10.0815]
[1728650094607,10.76,142.9,142.87,10.0815]
[1728650095193,3.45962929,142.94,142.85,6.70502]
[1728650095393,10.76,142.88,142.85,6.70502]
[1728650095804,10.76,142.89,142.85,14.38682]
[1728650096098,10.76,142.89,142.85,10.88502]
[1728650096299,10.76,142.89,142.86,3.5016]
[1728650096507,3.5007,142.91,142.85,10.88502]
[1728650096699,10.76,142.9,142.86,10.76]
[1728650096901,10.76,142.9,142.87,3.5015]
[1728650097904,10.76,142.9,142.88,3.5013]
[1728650098807,10.76,142.91,142.89,3.5011]
[1728650099107,14.2607,142.91,142.89,3.501]
[1728650099296,10.76,142.92,142.87,10.76]
[1728650099500,10.76,142.92,142.88,10.76]
[1728650099806,10.76,142.92,142.91,3.5006]
[1728650100107,10.76,142.92,142.85,0.12502]
[1728650100306,10.76,142.9,142.87,3.5013]
[1728650100710,14.2612,142.89,142.85,3.62692]
[1728650100910,10.76,142.89,142.85,0.12502]
[1728650101104,10.76,142.89,142.85,10.88502]
[1728650102111,10.76,142.89,142.87,3.5014]
[1728650102316,10.76,142.92,142.86,10.76]
[1728650102611,10.76,142.92,142.89,3.5009]
[1728650102798,10.76,142.92,142.88,10.76]
[1728650103201,10.76,142.93,142.89,10.76]
[1728650103406,7.99532,142.97,142.9,10.76]
[1728650103607,1.41532,142.97,142.91,10.76]
[1728650103805,10.76,142.96,142.91,10.76]
[1728650104105,10.76,142.95,142.9,10.76]
[1728650104503,1.41532,142.97,142.9,16.8]
[1728650104504,0.12502,142.97,142.9,16.8]
[1728650104700,0.12502,142.97,142.9,19.6304]
[1728650105111,0.12502,142.97,142.93,3.4999]
[1728650105310,0.12502,142.97,142.92,6.54]
[1728650105605,3.62432,142.97,142.92,10.0402]
[1728650105813,0.12502,142.97,142.92,6.54]
[1728650106715,3.4995,142.96,142.92,6.54]
[1728650106909,3.4995,142.96,142.91,3.5004]
[1728650106910,16.8,142.96,142.89,1.3072]
[1728650107112,16.8,142.96,142.89,7.8472]
[1728650107319,16.8,142.96,142.9,3.5006]
[1728650107714,16.8,142.94,142.86,1.3991]
[1728650107914,3.5002,142.93,142.88,3.5012]
[1728650108116,16.8,142.94,142.87,6.54]
[1728650109715,1.3851,142.96,142.87,6.54]
[1728650109716,18.1851,142.96,142.87,23.34]
[1728650110815,16.8,142.94,142.87,23.34]
[1728650111021,3.5002,142.93,142.89,3.501]
[1728650111315,16.8,142.92,142.87,6.54]
[1728650111618,16.8,142.92,142.85,8.00922]
[1728650111921,16.8,142.92,142.86,5.2306076]
[1728650112119,16.8,142.92,142.85,8.00922]
[1728650112319,16.8,142.92,142.86,5.23222219]
[1728650112517,16.8,142.92,142.87,5.23222219]
[1728650112719,16.8,142.92,142.85,24.80922]
[1728650112720,23.34,142.94,142.85,24.80922]
[1728650112924,23.34,142.94,142.86,5.23165068]
[1728650113127,3.5001,142.93,142.89,3.5008]
[1728650113622,26.84,142.94,142.87,16.8]
[1728650113928,16.8,142.94,142.88,5.23000465]
[1728650114126,20.2999,142.94,142.9,3.5007]
[1728650114622,20.2999,142.94,142.87,16.8]
[1728650114926,18.1851,142.96,142.88,5.22876371]
[1728650115224,0.12502,142.97,142.89,28.56683049]
[1728650115431,3.62432,142.97,142.92,3.5001]
[1728650115928,3.4995,142.96,142.92,3.5001]
[1728650116629,3.4998,142.95,142.91,3.5005]
[1728650116926,16.8,142.96,142.89,23.34]
[1728650117319,20.2999,142.94,142.9,3.5006]
[1728650118026,16.8,142.94,142.9,3.5006]
[1728650118230,3.5001,142.93,142.89,3.5009]
[1728650119127,3.5011,142.89,142.85,11.51112]
[1728650119320,16.8,142.9,142.85,6.66502]
[1728650119825,3.5012,142.89,142.86,5.23595409]
[1728650120023,3.5012,142.89,142.85,3.62692]
[1728650120321,3.5012,142.89,142.86,5.23708667]
[1728650120521,3.5012,142.89,142.85,3.62692]
[1728650121126,16.8,142.9,142.85,3.62692]
[1728650121325,3.5013,142.88,142.85,0.12502]
[1728650121525,16.8,142.9,142.85,0.12502]
[1728650121832,16.8,142.9,142.86,5.23911616]
[1728650122024,3.5011,142.89,142.85,3.62692]
[1728650122232,16.8,142.9,142.86,5.23890424]
[1728650122419,16.8,142.9,142.85,3.62692]
[1728650122620,16.8,142.9,142.86,5.24014171]
[1728650122830,16.8,142.9,142.85,0.12502]
[1728650123139,23.34,142.9,142.85,0.12502]
[1728650123431,16.8,142.88,142.85,0.12502]
[1728650124626,3.5017,142.87,142.85,0.12502]
[1728650125836,20.3018,142.86,142.85,0.12502]
[1728650126045,16.8,142.85,142.79,6.66502]
[1728650126224,16.8,142.85,142.8,5.24859049]
[1728650126429,3.5025,142.84,142.81,5.24859049]
[1728650126727,16.8,142.85,142.82,5.24859049]
[1728650126932,16.8,142.85,142.79,6.66502]
[1728650127132,3.5025,142.83,142.8,5.24960036]
[1728650127432,1.3647,142.86,142.79,3.62842]
[1728650127433,1.3647,142.86,142.81,5.24960036]
[1728650127635,3.5023,142.84,142.8,3.5031]
[1728650127836,1.3647,142.86,142.81,5.24993908]
[1728650128141,1.3647,142.86,142.82,5.24844206]
[1728650128341,3.5022,142.85,142.81,3.503]
[1728650128538,3.5022,142.85,142.82,5.24911466]
[1728650128839,4.8666,142.86,142.83,5.24898811]
[1728650129235,1.3647,142.86,142.84,5.24813543]
[1728650129433,6.54,142.89,142.85,5.24752866]
[1728650129642,6.54,142.89,142.82,16.8]
[1728650129836,3.5016,142.87,142.84,3.5021]
[1728650130244,16.8,142.88,142.8,23.34]
[1728650130544,3.5021,142.85,142.82,3.5026]
[1728650130839,16.8,142.88,142.8,23.34]
[1728650131041,18.1874,142.88,142.81,5.14289158]
[1728650131341,3.502,142.86,142.83,3.5025]
[1728650132945,1.3874,142.88,142.81,16.8]
[1728650133131,6.54,142.9,142.83,16.8]
[1728650133333,6.54,142.9,142.84,5.14310677]
[1728650133535,3.5011,142.89,142.86,3.5016]
[1728650133841,3.5011,142.89,142.83,16.8]
[1728650134041,3.5011,142.89,142.86,3.5016]
[1728650135643,6.54,142.9,142.86,3.5016]
[1728650135845,6.54,142.9,142.85,3.5019]
[1728650135846,3.5014,142.88,142.85,3.5019]
[1728650136053,16.8,142.88,142.81,1.3239]
[1728650136249,16.8,142.88,142.82,5.14463118]
[1728650136450,3.502,142.86,142.83,8.64703118]
[1728650136644,3.502,142.86,142.84,5.14463118]
[1728650136841,3.502,142.86,142.85,5.14463118]
[1728650137243,3.5017,142.87,142.81,5.14463118]
[1728650137444,3.5017,142.87,142.82,5.14619098]
[1728650137646,23.34,142.9,142.85,3.5019]
[1728650137846,23.34,142.9,142.81,16.8]
[1728650138041,23.34,142.9,142.82,5.14660134]
[1728650138245,23.34,142.9,142.85,3.5019]
[1728650138548,3.5013,142.88,142.85,3.5019]
[1728650139348,23.34,142.9,142.81,23.08]
[1728650139547,23.34,142.9,142.84,3.5022]
[1728650140147,3.5017,142.87,142.84,3.5022]
[1728650140546,23.34,142.9,142.84,3.5022]
[1728650141045,23.34,142.9,142.81,23.08]
[1728650141046,23.34,142.9,142.86,3.5018]
[1728650141243,3.5012,142.89,142.86,3.5018]
[1728650142152,3.5014,142.88,142.86,3.5018]
[1728650142848,23.34,142.9,142.86,3.5018]
[1728650143053,3.5011,142.89,142.86,3.5018]
[1728650144352,3.5013,142.88,142.86,3.5018]
[1728650144755,23.34,142.9,142.84,3.5022]
[1728650145156,23.34,142.9,142.81,23.08]
[1728650145352,23.34,142.9,142.85,3.5019]
[1728650145555,23.08,142.9,142.85,3.5019]
[1728650146058,23.08,142.9,142.87,3.5014]
[1728650146059,26.581,142.9,142.87,3.5014]
[1728650146245,23.08,142.9,142.87,3.5014]
[1728650146446,23.08,142.9,142.83,16.8]
[1728650146751,23.08,142.9,142.86,3.5017]
[1728650146752,3.5012,142.89,142.86,3.5017]
[1728650148563,3.5013,142.88,142.86,3.5017]
[1728650148752,3.5013,142.88,142.81,6.28]
[1728650148753,3.5013,142.88,142.85,3.5019]
[1728650149159,3.5013,142.88,142.81,23.08]
[1728650149160,3.5016,142.87,142.81,23.08]
[1728650149365,16.8,142.88,142.83,3.5023]
[1728650149558,16.8,142.87,142.79,0.12502]
[1728650149757,16.8,142.87,142.79,16.92502]
[1728650149965,6.28,142.9,142.84,3.5023]
[1728650149966,16.8,142.89,142.84,3.5023]
[1728650150458,23.08,142.9,142.85,3.5019]
[1728650150955,16.8,142.88,142.81,16.8]
[1728650151148,16.8,142.88,142.79,0.12502]
[1728650151353,3.5017,142.87,142.81,16.8]
[1728650151758,3.5017,142.87,142.84,3.5021]
[1728650154453,3.5017,142.87,142.81,16.8]
[1728650154664,3.5014,142.88,142.85,3.502]
[1728650154961,0.12502,142.91,142.87,16.8]
[1728650155155,0.12502,142.91,142.9,3.5008]
[1728650155356,16.8,142.99,142.9,6.28]
[1728650155662,16.8,142.99,142.93,3.5]
[1728650155663,3.62412,142.97,142.93,3.5]
[1728650155853,3.62412,142.97,142.9,6.28]
[1728650155854,0.12502,142.97,142.91,16.8]
[1728650156165,0.12502,142.97,142.96,3.4994]
[1728650160267,0.12502,143.03,142.95,23.08]
[1728650160462,0.12502,143.03,142.96,1.4252]
[1728650160661,16.8,143.02,142.96,2.8037]
[1728650161064,0.12502,143.03,142.96,2.8037]
[1728650161265,16.92502,143.09,142.99,16.8]
[1728650161469,16.92502,143.09,143.0,6.28]
[1728650161763,16.8,143.07,143.0,6.28]
[1728650161963,16.8,143.07,143.01,3.498]
[1728650162167,16.8,143.07,143.0,6.28]
[1728650162369,16.8,143.07,143.02,3.4977]
[1728650162370,20.2968,143.07,143.02,3.4977]
[1728650162764,16.8,143.07,143.0,6.28]
[1728650163270,16.8,143.07,142.97,16.92502]
[1728650163271,16.8,143.03,142.97,6.40502]
[1728650163868,16.8,143.03,142.97,0.12502]
[1728650165368,16.8,143.01,142.97,0.12502]
[1728650165665,16.8,142.99,142.97,0.12502]
[1728650165859,20.2989,142.98,142.97,0.12502]
[1728650166260,16.8,142.98,142.9,6.56]
[1728650166463,3.4992,142.97,142.9,6.56]
[1728650167069,3.4992,142.97,142.93,3.4999]
[1728650167670,3.499,142.98,142.94,3.4998]
[1728650168171,16.8,143.0,142.9,23.36]
[1728650168369,3.4988,142.99,142.9,23.36]
[1728650168871,3.4988,142.99,142.94,3.4996]
[1728650169273,3.4989,142.98,142.94,3.4996]
[1728650169773,3.4994,142.96,142.92,3.5002]
[1728650170375,16.8,142.96,142.88,16.8]
[1728650170567,16.8,142.96,142.91,3.62552]
[1728650170568,3.4998,142.95,142.91,3.62552]
[1728650170869,16.8,142.96,142.91,0.12502]
[1728650171065,2.7167,142.99,142.91,0.12502]
[1728650171889,1.2968,142.99,142.92,16.8]
[1728650172084,20.2982,143.01,142.97,3.4989]
[1728650172387,1.2954,143.02,142.94,16.8]
[1728650172588,1.2954,143.02,143.0,3.4984]
[1728650173083,1.2954,143.02,142.99,3.4985]
[1728650173478,18.0954,143.02,142.99,3.4985]
[1728650173878,1.2954,143.02,142.94,19.4242]
[1728650174087,1.2954,143.02,143.0,3.4982]
[1728650174280,1.2954,143.02,142.94,19.4242]
[1728650174488,4.7933,143.02,142.98,3.4987]
[1728650174683,1.2954,143.02,142.94,19.4242]
[1728650174995,1.2954,143.02,142.99,3.4986]
[1728650175496,0.12502,143.03,142.96,16.8]
[1728650175679,0.12502,143.03,143.0,3.4982]
[1728650176086,0.12502,143.03,142.96,16.8]
[1728650176384,0.12502,143.03,142.94,2.6242]
[1728650176385,0.12502,143.03,142.97,23.36]
[1728650176584,0.12502,143.03,143.02,3.4979]
[1728650181488,1e-08,143.03,143.02,20.2979]
[1728650183989,0.12502,143.09,143.07,3.4965]
[1728650184192,0.12502,143.09,143.04,16.8]
[1728650184596,3.62122,143.09,143.06,3.4968]
[1728650185290,3.62122,143.09,143.05,3.497]
[1728650185697,0.12502,143.09,143.02,16.8]
[1728650186197,0.12502,143.09,143.05,3.497]
[1728650186397,3.62122,143.09,143.05,3.497]
[1728650187502,3.62122,143.09,143.06,3.4969]
[1728650188299,0.12502,143.09,143.05,3.497]
[1728650188499,0.12502,143.09,143.06,16.8]
[1728650188994,0.12502,143.09,143.07,3.4965]
[1728650189195,0.12502,143.09,143.06,16.8]
[1728650189706,0.12502,143.09,143.07,3.4967]
[1728650190003,0.12502,143.09,143.06,16.8]
[1728650190201,0.12502,143.09,143.08,3.4964]
[1728650191205,3.62122,143.09,143.06,3.4968]
[1728650191802,0.12502,143.09,143.06,3.4968]
[1728650193104,0.12502,143.09,143.07,3.4967]
[1728650194008,0.12502,143.09,143.04,23.36]
[1728650194210,0.12502,143.09,143.08,3.4964]
[1728650197009,0.12502,143.09,143.08,10.0164]
[1728650197211,7.59119843,143.11,143.08,23.32]
[1728650197508,7.59119843,143.11,143.08,6.52]
[1728650197718,7.59119843,143.11,143.1,3.4959]
[1728650198617,7.59119843,143.11,143.09,3.4961]
[1728650198811,7.59119843,143.11,143.07,6.52]
[1728650199207,7.59119843,143.11,143.1,3.4959]
[1728650199715,7.59119843,143.11,143.09,3.496]
[1728650200512,7.59119843,143.11,143.07,6.52]
[1728650200717,7.59119843,143.11,143.08,3.4964]
[1728650202516,7.59119843,143.11,143.09,3.4961]
[1728650203317,7.59119843,143.11,143.08,3.4963]
[1728650204816,11.08689843,143.11,143.08,3.4963]
[1728650205016,11.08689843,143.11,143.04,16.8]
[1728650205219,7.59119843,143.11,143.06,3.4968]
[1728650205416,3.4961,143.1,143.05,6.52]
[1728650206316,3.4961,143.1,143.06,3.4967]
[1728650206718,7.59119843,143.11,143.05,23.32]
[1728650206913,7.59119843,143.11,143.09,3.4962]
[1728650208522,7.59119843,143.11,143.08,3.4963]
[1728650208919,11.08699843,143.11,143.06,6.52]
[1728650209120,11.08699843,143.11,143.07,3.4965]
[1728650209319,11.08699843,143.11,143.06,6.52]
[1728650209726,11.08699843,143.11,143.07,3.4965]
[1728650210924,3.4959,143.1,143.07,3.4965]
[1728650211119,3.4959,143.1,143.06,6.52]
[1728650211325,3.4959,143.1,143.06,10.0168]
[1728650212522,3.4959,143.1,143.07,3.4966]
[1728650213322,3.4959,143.1,143.06,10.0168]
[1728650213620,3.4959,143.1,143.06,6.52]
[1728650214025,3.4959,143.1,143.06,10.0168]
[1728650215528,3.4964,143.09,143.05,3.497]
[1728650216119,7.59119843,143.11,143.03,16.92502]
[1728650216325,20.26517874,143.1,143.03,0.12502]
[1728650216527,7.59119843,143.11,143.03,10.86502]
[1728650216528,10.74,143.07,143.03,10.86502]
[1728650217537,10.74,143.06,143.03,0.12502]
[1728650217831,14.237,143.06,143.03,0.12502]
[1728650218022,10.74,143.06,143.03,0.12502]
[1728650218529,6.52,143.1,143.03,0.12502]
[1728650218530,16.78,143.08,143.03,0.12502]
[1728650219730,3.4974,143.04,143.03,0.12502]
[1728650220128,20.2774,143.04,143.03,0.12502]
[1728650220340,20.2774,143.04,142.97,0.12502]
[1728650220341,16.78,143.04,142.97,0.12502]
[1728650220827,6.52,143.06,142.97,0.12502]
[1728650220828,23.3,143.06,142.98,16.78]
[1728650221426,3.4972,143.05,143.01,3.4979]
[1728650221627,3.4972,143.05,142.98,16.78]
[1728650221830,3.4975,143.04,143.0,3.4984]
[1728650222030,16.78,143.06,142.98,16.78]
[1728650222428,3.4972,143.05,143.01,3.4981]
[1728650225534,16.78,143.06,142.98,16.78]
[1728650225729,20.2771,143.06,143.02,3.4979]
[1728650225936,16.78,143.06,143.02,3.4979]
[1728650227440,3.4972,143.05,143.02,3.4979]
[1728650228135,16.78,143.06,143.02,3.4979]
[1728650228331,20.2769,143.06,143.03,3.4976]
[1728650228530,20.2769,143.06,142.98,16.78]
[1728650228939,13.9641,143.07,143.0,16.78]
[1728650229137,10.4673,143.07,143.0,16.78]
[1728650229433,10.4673,143.07,143.03,3.4976]
[1728650229638,10.4673,143.07,143.0,16.78]
[1728650229639,13.964,143.07,143.0,16.78]
[1728650229936,4.1273,143.07,143.0,23.12]
[1728650230238,4.1273,143.07,143.02,16.78]
[1728650230836,4.1273,143.07,143.04,3.4973]
[1728650231031,2.713,143.07,143.04,3.4973]
[1728650231633,2.713,143.07,143.0,23.12]
[1728650231834,2.713,143.07,143.02,3.4979]
[1728650232239,3.497,143.06,143.02,3.4979]
[1728650232433,2.713,143.07,143.0,23.12]
[1728650232934,6.2097,143.07,143.03,3.4975]
[1728650234734,3.4969,143.06,143.03,3.4975]
[1728650235045,2.713,143.07,143.0,23.12]
[1728650235234,2.713,143.07,143.02,3.4978]
[1728650235736,3.4973,143.05,143.01,3.498]
[1728650235934,16.78,143.06,142.98,7.7506]
[1728650236637,3.4973,143.05,143.01,3.498]
[1728650236944,16.78,143.06,143.01,3.498]
[1728650237138,3.4974,143.04,143.01,3.498]
[1728650237437,16.78,143.03,142.97,0.12502]
[1728650237740,20.2778,143.03,142.97,0.12502]
[1728650237951,16.78,143.03,142.99,3.4985]
[1728650238242,20.33247465,143.03,142.99,3.4985]
[1728650238636,23.83027465,143.03,142.99,3.4985]
[1728650239544,23.83027465,143.03,143.0,3.4984]
[1728650240844,23.83027465,143.03,142.99,3.4985]
[1728650241337,20.33247465,143.03,142.99,3.4985]
[1728650241941,23.83017465,143.03,142.99,3.4984]
[1728650242246,20.33247465,143.03,142.97,0.12502]
[1728650242544,10.75,143.01,142.97,10.87502]
[1728650244047,10.75,143.0,142.97,0.12502]
[1728650244339,10.75,143.0,142.98,3.4987]
[1728650244539,10.75,143.01,142.97,0.12502]
[1728650244742,14.27977687,143.01,142.97,0.12502]
[1728650244938,10.75,143.01,142.99,3.4986]
[1728650245134,10.75,143.01,142.97,0.12502]
[1728650245544,10.75,143.01,142.98,3.4987]
[1728650246544,9.73958133,143.02,142.97,0.12502]
[1728650246545,10.75,142.99,142.97,0.12502]
[1728650246741,10.75,142.99,142.88,45.92141126]
[1728650246742,10.75,142.98,142.93,10.75]
[1728650246946,10.75,142.97,142.93,10.75]
[1728650247146,10.75,142.97,142.95,3.4994]
[1728650247447,10.75,142.97,142.93,10.75]
[1728650247740,9.8385,143.0,142.96,3.4992]
[1728650247741,6.34,143.0,142.96,3.4992]
[1728650247941,6.34,143.0,142.88,13.3422]
[1728650248150,6.34,143.0,142.96,10.75]
[1728650248348,6.34,143.0,142.97,3.4989]
[1728650248939,1.3589,143.01,142.98,3.4987]
[1728650249149,1.3589,143.01,142.98,14.2487]
[1728650250542,2.7271,143.02,142.95,16.79]
[1728650251042,6.46502,143.03,142.97,16.79]
[1728650252047,6.46502,143.03,143.0,3.4982]
[1728650252248,6.46502,143.03,142.97,16.79]
[1728650253454,6.46502,143.03,142.93,2.63]
[1728650253455,0.12502,143.03,143.02,3.4979]
[1728650255551,0.12502,143.03,143.01,3.4979]
[1728650255952,0.12502,143.03,142.99,16.79]
[1728650256153,0.12502,143.03,143.02,3.4979]
[1728650257350,0.12502,143.03,143.0,3.4982]
[1728650257951,0.12502,143.03,143.01,3.4981]
[1728650260445,0.12502,143.03,142.99,3.4985]
[1728650260750,3.62282,143.03,142.99,3.4985]
[1728650260950,0.12502,143.03,142.99,3.4985]
[1728650262253,0.12502,143.03,143.0,3.4982]
[1728650263654,0.12502,143.03,142.97,1.4178]
[1728650263858,0.12502,143.03,143.01,3.4979]
[1728650264060,0.12502,143.03,142.97,1.4178]
[1728650264259,0.12502,143.03,143.01,3.498]
[1728650266157,0.12502,143.03,143.02,3.4979]
[1728650269757,0.12502,143.03,142.97,1.4178]
[1728650270060,16.79,143.01,142.99,3.4985]
[1728650270366,16.79,143.01,142.97,1.4178]
[1728650270572,16.79,143.01,142.98,3.4988]
[1728650270972,16.79,143.01,142.97,1.4178]
[1728650271366,16.79,143.01,142.94,6.16]
[1728650271569,16.79,142.99,142.94,6.16]
[1728650271868,16.79,142.99,142.94,3.4996]
[1728650272065,16.79,143.01,142.94,16.79]
[1728650272468,6.16,143.02,143.0,3.4982]
[1728650272670,10.75,143.01,143.0,3.4982]
[1728650274764,10.75,143.01,142.99,3.4985]
[1728650274972,9.78282,143.03,142.99,3.4985]
[1728650274973,10.75,143.0,142.99,3.4985]
[1728650275575,10.75,143.0,142.97,3.499]
[1728650275880,10.75,142.98,142.97,3.499]
[1728650276078,16.91,142.98,142.91,0.12502]
[1728650276271,10.75,142.92,142.91,3.62562]
[1728650276466,16.79,142.92,142.91,3.62562]
[1728650276672,16.79,142.94,142.91,3.62562]
[1728650276974,22.95,142.94,142.91,3.62562]
[1728650277281,16.79,142.92,142.91,0.12502]
[1728650278077,6.16,142.95,142.91,0.12502]
[1728650278271,16.79,142.96,142.91,0.12502]
[1728650278867,3.4992,142.97,142.91,0.12502]
[1728650278868,16.79,142.94,142.91,0.12502]
[1728650279072,16.79,142.94,142.92,3.5003]
[1728650279764,16.79,142.94,142.91,3.62552]
[1728650280164,16.79,142.92,142.91,3.62552]
[1728650281868,16.79,142.92,142.89,3.5009]
[1728650282079,16.79,142.9,142.89,3.5009]
[1728650282672,16.79,142.9,142.85,0.12502]
[1728650282877,16.79,142.86,142.85,0.12502]
[1728650283473,16.79,142.86,142.82,1.3694]
[1728650283979,16.79,142.84,142.83,3.5025]
[1728650284175,16.79,142.84,142.79,2.82442]
[1728650284677,16.79,142.84,142.82,3.5028]
[1728650284886,16.79,142.84,142.79,2.82442]
[1728650285074,16.79,142.82,142.8,3.5033]
[1728650285274,16.79,142.82,142.79,2.82442]
[1728650286077,16.79,142.82,142.81,3.503]
[1728650286686,16.79,142.82,142.79,2.82442]
[1728650287072,16.79,142.8,142.79,0.12502]
[1728650287277,16.79,142.8,142.79,3.62842]
[1728650287480,16.79,142.8,142.79,0.12502]
[1728650288382,16.79,142.8,142.79,3.62852]
[1728650288576,16.79,142.82,142.79,0.12502]
[1728650289378,16.79,142.82,142.8,3.5033]
[1728650290188,16.79,142.82,142.79,0.12502]
[1728650290385,16.79,142.82,142.81,3.503]
[1728650290783,11.87884318,143.4,142.81,3.503]
[1728650291090,16.79,142.83,142.81,3.5029]
[1728650291389,16.79,142.83,142.79,0.12502]
[1728650291887,16.79,142.83,142.81,3.503]
[1728650292190,16.79,142.83,142.79,0.12502]
[1728650292387,16.79,142.83,142.8,3.5031]
[1728650293187,16.79,142.83,142.8,3.5032]
[1728650294088,16.79,142.81,142.8,3.5032]
[1728650295889,16.79,142.81,142.79,0.12502]
[1728650297190,16.79,142.81,142.74,3.9491]
[1728650297391,16.79,142.77,142.74,3.9491]
[1728650297696,16.79,142.77,142.75,3.5045]
[1728650298393,16.79,142.77,142.74,4.827]
[1728650298784,16.79,142.75,142.74,3.5047]
[1728650299188,16.79,142.75,142.73,0.12502]
[1728650299492,16.79,142.75,142.73,3.62992]
[1728650299989,16.79,142.75,142.71,3.5053]
[1728650300195,16.79,142.73,142.68,1.3362]
[1728650300389,16.79,142.75,142.68,4.0562]
[1728650300789,16.79,142.75,142.73,3.5048]
[1728650301600,16.79,142.75,142.68,4.0562]
[1728650301988,16.79,142.75,142.73,3.5048]
[1728650304892,16.79,142.75,142.67,0.12502]
[1728650305092,16.79,142.71,142.67,0.12502]
[1728650305797,16.79,142.71,142.67,3.63132]
[1728650307095,16.79,142.71,142.67,0.12502]
[1728650307391,16.79,142.71,142.68,3.5062]
[1728650309790,16.79,142.71,142.67,3.63142]
[1728650309994,6.14,142.72,142.67,0.12502]
[1728650309995,16.79,142.68,142.67,0.12502]
[1728650310196,3.5066,142.67,142.61,0.12502]
[1728650310401,16.79,142.66,142.63,3.5073]
[1728650310988,16.79,142.66,142.61,0.12502]
[1728650310989,16.79,142.64,142.61,3.63282]
[1728650311199,16.79,142.64,142.61,0.12502]
[1728650311593,16.79,142.64,142.62,3.5075]
[1728650312196,16.79,142.64,142.61,0.12502]
[1728650312699,16.79,142.62,142.61,0.12502]
[1728650313507,16.79,142.64,142.61,0.12502]
[1728650314305,20.2972,142.64,142.61,0.12502]
[1728650314897,16.79,142.64,142.61,3.63292]
[1728650315196,16.79,142.64,142.61,0.12502]
[1728650315701,16.79,142.64,142.62,3.5075]
[1728650316398,3.5076,142.63,142.61,0.12502]
[1728650316705,16.79,142.62,142.61,0.12502]
[1728650318899,16.79,142.64,142.61,3.63292]
[1728650320502,20.2972,142.64,142.61,3.63292]
[1728650321605,4.92220218,142.7,142.61,0.12502]
[1728650321806,3.5067,142.67,142.64,3.5072]
[1728650321997,16.79,142.67,142.61,0.12502]
[1728650322502,16.79,142.65,142.61,0.12502]
[1728650322702,16.79,142.64,142.61,0.12502]
[1728650323107,3.5075,142.63,142.61,0.12502]
[1728650323406,16.79,142.62,142.61,0.12502]
[1728650324003,20.2977,142.62,142.61,0.12502]
[1728650325905,16.79,142.62,142.55,0.12502]